Cogmind - Beta 13 @@@ ROGUE MODE // 2024.04.01 @ 00:24:52 Player: BigMaxPorter Result: Destroyed by G-34 Mercenary with Small Laser Performance ------------- Evolutions (0) 0 Regions Visited (2) 400 Robots Destroyed (14) 70 Value Destroyed (368) 368 Prototype IDs (1) 20 Alien Tech Used (0) 0 Bonus (0) 0 TOTAL SCORE: 858 Bonus ------- None Cogmind --------- Core Integrity 0/250 Matter 277/300 Energy 100/100 System Corruption 0% Temperature Cool (6) Movement Core (50) Location -10/Mines Parts ------- > --- POWER (1) -------- (None) > --- PROPULSION (2) --- (None) > --- UTILITY (2) ------ Structural Scanner > --- WEAPON (2) ------- (None) > --- INVENTORY (5) ---- Heat Sink Small Storage Unit Decoy Drone Bay (6/16) Peak State ------------ > --- POWER ------------ Light Ion Engine > --- PROPULSION ------- Aluminum Leg > --- UTILITY ---------- Decoy Drone Bay > --- WEAPON ----------- Assault Rifle > --- INVENTORY -------- Heat Sink Small Storage Unit Structural Scanner [Rating: 17] Favorites ----------- Power Light Ion Engine Engine Light Ion Engine Propulsion Aluminum Leg Leg Aluminum Leg Utility Structural Scanner Device Structural Scanner Storage Small Storage Unit Processor Targeting Computer Weapon Assault Rifle Ballistic Gun Assault Rifle Launcher Grenade Launcher Build | -11 -10 -10 ------- Run | Yrd Mat Min Slots Evolved . | . . . Power . | . . . Propulsion . | . . . Utility . | . . . Weapon . | . . . Parts Attached 16 | 6 5 5 Power 2 | 1 1 . Engine 2 | 1 1 . Core . | . . . Reactor . | . . . Propulsion 3 | 2 1 . Treads . | . . . Leg 3 | 2 1 . Wheel . | . . . Hover . | . . . Flight . | . . . Utility 7 | 1 1 5 Device 5 | . 1 4 Storage 1 | 1 . . Processor 1 | . . 1 Hackware . | . . . Protection . | . . . Artifact . | . . . Weapon 4 | 2 2 . Energy Gun . | . . . Energy Cannon . | . . . Ballistic Gun 3 | 2 1 . Ballistic Cannon . | . . . Launcher 1 | . 1 . Special Weapon . | . . . Impact Weapon . | . . . Slashing Weapon . | . . . Piercing Weapon . | . . . Special Melee Weapon . | . . . Unidentified Prototypes 1 | . . 1 Parts Lost 6 | . 3 3 Power 1 | . . 1 Propulsion 2 | . 1 1 Utility . | . . . Weapon 3 | . 2 1 Highest Loss Streak 2 | . 2 2 To Critical Strikes . | . . . Average Slot Usage (%) 62 | . 91 54 Engine 10 | . 14 9 Leg 16 | . 27 14 Device 12 | . 8 14 Storage 5 | . 14 3 Processor 2 | . . 3 Ballistic Gun 12 | . 24 9 Naked Turns . | . . . Heaviest Build 19 | 12 13 19 Greatest Support 20 | 20 20 10 Greatest Overweight (x) 1 | . 1 1 Average Overweight (x) . | . . . Largest Inventory Capacity 8 | 8 8 8 Average Capacity 6 | 6 8 5 Most Carried 5 | 1 3 5 Average Carried 2 | . 2 3 Final Capacity 8 | 8 8 5 Final Carried 4 | 1 1 4 Class Distribution -------------------- 100% | Mutant Dominant Class ---------------- Mutant | -10/Materials Mutant | -10/Mines Resources | -11 -10 -10 ----------- Run | Yrd Mat Min Matter Collected 397 | 213 168 16 Remotely . | . . . Salvage Created 348 | . 348 . Parts 27 | . 27 . Haulers Intercepted . | . . . Recyclers Shooed . | . . . Parts Field Recycled . | . . . Retrieved Matter . | . . . Parts Self-Destructed . | . . . Prevented . | . . . Kills | -11 -10 -10 ------- Run | Yrd Mat Min Combat Hostiles Destroyed 11 | . 11 . Guns 4 | . 4 . AOE 7 | . 7 . Classes Destroyed 5 | . 5 . Worker 1 | . 1 . Recycler 1 | . 1 . Mechanic 1 | . 1 . Swarmer 3 | . 3 . Grunt 8 | . 8 . Best Kill Streak 11 | . 11 . Combat Bots Only 8 | . 8 . Max Kills in Single Turn 4 | . 4 . Gunslinging . | . . . Exploded 4 | . 4 . Melee . | . . . Uniques/NPCs Destroyed . | . . . Combat | -11 -10 -10 -------- Run | Yrd Mat Min Hostile Shots Fired 105 | . 73 32 Missed 40 | . 29 11 Damage Taken 900 | . 695 205 Core 254 | . 175 79 Absorbed by Shields . | . . . Core Remaining (%) 100 | 100 . . Volleys Fired 14 | . 12 2 Largest 2 | . 2 1 Hottest 50 | . 50 20 Shots Fired 25 | . 23 2 Gun 21 | . 19 2 Cannon . | . . . Launcher 4 | . 4 . Special . | . . . Kinetic 21 | . 19 2 Thermal . | . . . Explosive 4 | . 4 . Electromagnetic . | . . . Robot Hit Streak 5 | . 5 . Robot Miss Streak 5 | . 5 2 Penetration Max . | . . . Secondary Targets . | . . . Shots Hit Robots 13 | . 13 . Core Hits 24 | . 23 1 Critical Kills . | . . . Critical Parts Destroyed . | . . . Critical Strikes . | . . . Melee Attacks . | . . . Impact . | . . . Slashing . | . . . Piercing . | . . . Sneak Attacks . | . . . Combat Hostiles . | . . . Follow-up Attacks . | . . . Damage Inflicted 851 | . 848 3 Guns 150 | . 150 . Cannons . | . . . Explosions 698 | . 698 . Melee . | . . . Ramming 3 | . . 3 Kinetic 150 | . 150 . Thermal . | . . . Explosive 558 | . 558 . Electromagnetic 140 | . 140 . Impact . | . . . Slashing . | . . . Piercing . | . . . Highest Corruption . | . . . Average Corruption . | . . . Corruption Purged . | . . . Corruption Blocked . | . . . Overload Shots . | . . . Overflow Damage . | . . . Projectiles . | . . . Explosions . | . . . Melee . | . . . Knockbacks . | . . . Impact . | . . . Kinetic . | . . . Secondary . | . . . Self-Inflicted Damage 109 | . 109 . Shots 4 | . 4 . Rammed . | . . . Targets Rammed 4 | . . 4 Kicked 4 | . . 4 Crushed . | . . . Highest Temperature 11 | . 11 . Average Temperature 5 | . 5 . Received Heat Transfer 210 | . 174 36 Siege Activations . | . . . Robots Corrupted . | . . . Combat Hostiles . | . . . Parts Fried . | . . . Impact Corruptions . | . . . Robots Melted . | . . . Combat Hostiles . | . . . Parts Melted . | . . . Heat Transferred . | . . . Parts Sabotaged . | . . . Parts Stolen . | . . . Parts Stripped . | . . . Power Chain Reactions . | . . . Alert | -11 -10 -10 ------- Run | Yrd Mat Min Peak Influence 385 | . 385 145 Initial 145 | . . 145 Average 72 | . 135 58 Maximum Alert Level 1 | . 1 . Low Security (%) 91 | 100 63 100 Level 1 8 | . 36 . Level 2 . | . . . Level 3 . | . . . Level 4 . | . . . Level 5 . | . . . High Security . | . . . Max Security . | . . . Squads Dispatched 3 | . 3 . Investigation 1 | . 1 . Extermination . | . . . Reinforcement 2 | . 2 . Assault . | . . . Garrison . | . . . Intercept . | . . . Searches Triggered . | . . . Construction Impeded . | . . . Haulers Reinforced . | . . . Active Scanning Responses . | . . . Cargo Convoy Interrupts . | . . . Stealth | -11 -10 -10 --------- Run | Yrd Mat Min Distress Signals . | . . . Communications Jammed . | . . . Distress Signals . | . . . Times Spotted 25 | . 18 7 Peak Tracking Total 8 | . 8 3 Tactical Retreats 3 | . 1 2 Traps | -11 -10 -10 ------- Run | Yrd Mat Min Traps Triggered 1 | . 1 . Indirectly . | . . . Trap Hack Attempts . | . . . Triggered . | . . . Disarmed . | . . . Reprogrammed . | . . . Reused . | . . . Traps Extracted . | . . . Installed . | . . . Triggered . | . . . Machines | -11 -10 -10 ---------- Run | Yrd Mat Min Machines Disabled 2 | . 2 . Max in Single Turn 2 | . 2 . Machines Repaired . | . . . Machines Dismantled . | . . . Machines Sabotaged . | . . . Overloaded Fab Kills . | . . . Hacking | -11 -10 -10 --------- Run | Yrd Mat Min Machines Accessed 2 | . 1 1 Terminals 1 | . 1 . Fabricators . | . . . Repair Stations . | . . . Recycling Units . | . . . Scanalyzers . | . . . Garrison Access . | . . . Total Hacks 6 | . 5 1 Successful 5 | . 4 1 Failed 1 | . 1 . Catastrophic . | . . . Database Lockouts . | . . . Manual . | . . . Terminals 5 | . 5 . Fabricators . | . . . Repair Stations . | . . . Recycling Units . | . . . Scanalyzers . | . . . Garrison Access . | . . . Terminal Hacks 5 | . 4 1 Record 4 | . 4 . Open Door 1 | . . 1 Fabricator Hacks . | . . . Repair Station Hacks . | . . . Recycling Unit Hacks . | . . . Scanalyzer . | . . . Garrison Access Hacks . | . . . Unauthorized Hacks . | . . . Terminals . | . . . Fabricators . | . . . Repair Stations . | . . . Recycling Units . | . . . Scanalyzers . | . . . Garrison Access . | . . . Data Cores Recovered . | . . . Used . | . . . Hacking Detections 1 | . 1 . Full Trace Events 1 | . 1 . Feedback Events . | . . . Feedback Blocked . | . . . Robot Schematics Acquired . | . . . Robots Built . | . . . Authchips . | . . . Time . | . . . Total Robot Build Rating . | . . . Part Schematics Acquired . | . . . Parts Built . | . . . Authchips . | . . . Time . | . . . Total Part Build Rating . | . . . Parts Repaired . | . . . Time . | . . . Parts Recycled . | . . . Recycled Matter . | . . . Retrieved Matter . | . . . Retrieved Components . | . . . Parts Scanalyzed . | . . . Part Schematics Acquired . | . . . Parts Damaged . | . . . Bothacking | -11 -10 -10 ------------ Run | Yrd Mat Min Used RIF Installer . | . . . Robots Hacked . | . . . Non-combat . | . . . Combat . | . . . Robot Hacks Applied . | . . . Relay Couplers Released . | . . . Fabnet Peak Effective % . | . . . Robots Rewired . | . . . Allies Hacked . | . . . Hacks Repelled . | . . . Allies | -11 -10 -10 -------- Run | Yrd Mat Min Total Allies . | . . . Largest Group . | . . . Highest-Rated Group . | . . . Highest-Rated Ally . | . . . Total Orders . | . . . Ally Attacks . | . . . Total Damage . | . . . Kills . | . . . Allies Corrupted . | . . . Allies Melted . | . . . Intel | -11 -10 -10 ------- Run | Yrd Mat Min Robot Analysis Total . | . . . Derelict Logs Recovered 2 | . . 2 Drone Launches 10 | . . 10 Drone Recoveries . | . . . Exploration | -11 -10 -10 ------------- Run | Yrd Mat Min Turns Passed 1374 | 65 301 1008 Spaces Moved 915 | 46 206 663 Core 4 | 4 . . Treads . | . . . Legs 911 | 42 206 663 Wheels . | . . . Hover . | . . . Flight . | . . . Fastest Speed 50 | 50 120 120 Average Speed 140 | 113 124 147 Slowest Speed 190 | 120 190 190 Overloaded Moves . | . . . Propulsion Burnouts . | . . . Robots Hopped . | . . . Cave-ins Triggered . | . . . Exploration Rate (%) 44 | 4 45 83 Regions Visited 2 Branch Regions 1 Pre-discovered Areas 1 | . . 1 Known Exits Taken . | . . . Unknown Exits Taken 2 | 1 1 . Scrap Searched . | . . . Spaces Dug . | . . . Terrain Destroyed 26 | . 26 . Melee . | . . . Projectile . | . . . AOE 26 | . 26 . Terrain Rammed . | . . . Walls Destroyed . | . . . Machines Disabled . | . . . Actions | -11 -10 -10 --------- Run | Yrd Mat Min Total 974 | 55 226 693 Wait 15 | 3 . 12 Move 913 | 45 205 663 Hop . | . . . Pick Up 4 | 1 2 1 Fast Attach 8 | 6 1 1 Attach 5 | . 1 4 Detach 6 | . . 6 Swap 3 | . 3 . Drop 2 | . 2 . Fire 14 | . 12 2 Melee . | . . . Ram . | . . . Kick 4 | . . 4 Crush . | . . . Escape Stasis . | . . . Rewire . | . . . Trap . | . . . Miscellaneous . | . . . Route ------- -11/Scrapyard -10/Materials -10/Mines (discovered 2 exits: [*Mat x2]) History --------- Turn | Location | Event 26 | -11/Scrapyard | Discovered new exit (range 14) 66 | -11/Scrapyard | Entered Materials 293 | -10/Materials | Destroyed 8 combat bots 309 | -10/Materials | Build established: Mutant 315 | -10/Materials | Core integrity fell below 50% 339 | -10/Materials | Discovered new exit (range 16) 367 | -10/Materials | Entered Mines 614 | -10/Mines | Found the Drone Emporium 622 | -10/Mines | Found Prototype Device 624 | -10/Mines | Identified Decoy Drone Bay 688 | -10/Mines | Discovered new exit (range 5) 690 | -10/Mines | Discovered new exit (range 15) 694 | -10/Mines | Learned location of Storage (-9) 713 | -10/Mines | Learned Materials trap positions 1066 | -10/Mines | Core integrity fell below 20% 1375 | -10/Mines | Destroyed by G-34 Mercenary with Small Laser Last Messages --------------- Decoy Drone self-destructs. Decoy Drone destroyed. Decoy Drone self-destructs. Decoy Drone destroyed. Warning: Alt-Tabbing between programs is known to cause issues with some software requiring use of the Alt key, leaving a program unaware of the key's current state, and defaulting to off when the program checks. Keyboard commands such as panning the map may instead move Cogmind after an Alt-Tab. To prevent this possibility, consider tapping the Alt key again after returning to Cogmind in order to reset it. See the manual for more info. K-01 Serf collects debris. Acquired 10 matter. Acquired 6 matter. Kicked G-34 Mercenary. Kicked G-34 Mercenary out of the way. Aluminum Leg destroyed. Map ----- +----------------------------------------------------+ | | | | | | | | | | | | | | | | | | | | | | | | | | | | | ???????????????????????????######????????????????? | | ??????????????????????????############??????###### | | ??????????????????######??### ########????####### | | ?????????????????########?## ###????###"""" | | ????????????????#### ##### ##????##" | | ???????????????#### < ##### ## ###???##" | | ???????????####### ######## ####??### | | ??????????? ##### ####### ###??#### # | | ????????? $ ###?## X | | ????????? ##?## | | ????????? < ##### ####g##### ##### | | ????????????#############@###### ##### | | ????????????????####???##g##?### | | ???????????????????????## ##??### | | ???????????????########## ################ ###### | | ???????????????########## ################ ###### | | ???????????????## #### ##???## ##???# | | ????????????##### ############ ####### ##???# | | ????????????##### ############ #######%##???# | | ????????????## ##????????## ##???## | | ????????????## ## ##????????## ##### ####???## | | ????????????## ## ##????????## ##### ####????# | | ????????????## ## ###???????############ ###?????? | | ???????????### ## ####??????########### ####????? | | ???????????### ####???????????#### ###????? | | ??????????### ####??????????### ##????? | | ?????????### ### ####?????????## """ ##????? | | ?????????## ##### ###?????????## """ ###????? | | ?????????### ###### ###????????### """%#######? | | ?????????######??### #####??????### #######? | | ??????????####???#### ##########?### ##? | | ??????????????????#### ########?##### ##? | | ???????????????????#### ## ##??#### #### ### | | ????????????????????### # ##????## #### ### | | ????????????????####### ###???## #### ## | | ???????????????######### ###???## #### ## | +----------------------------------------------------+ Best States ------------- Heat Dissipation 25 Energy Generation 10 Energy Capacity 125 Matter Stores 300 Matter Capacity 300 Sight Range 16 Terrain Scan Density 10 Evasion (%) 55 Targeting Accuracy 5 Item Schematics ----------------- None Robot Schematics ------------------ None Fabricated ------------ Nothing Alien Tech Used ----------------- None Achievements -------------- Release The Drones! Challenges ------------ None Game ------ Seed ImprinterRagnarokMultitool Manual? 0 Play Time 00:12:59 Cumulative 1.5 hours Start 2024.04.01 @ 00:13:53 End 2024.04.01 @ 00:24:52 Sessions 1 Manual Loads 0 Difficulty Rogue Special Mode None Game No. 5 Rogue 5 Adventurer 0 Explorer 0 Win Type - Total 0 Types 0/0/0/0/0/0/0/0/0 Lore% 1 Gallery% 7 Achievement% 7 Wizard Run 0 Options --------- Layout 1 ASCII 0 Keyboard 0 Movement Mouse Keybinds 0 Fullscreen 1 Font 24/Smallcaps Map View 50x35 Zoom Use 0% Tactical HUD 0 Map Filters NONE Filters NONE Steam 1 RUN: 8e295d88-e89e-4c8b-843d-cc5db9200f7e